bitfinex-derivatives/quotes_BTCF0:USTF0_20260127
["timestamp","ask_amount","ask_price","bid_price","bid_amount"]
[1769483957207,0.01129,88676.0,88666.0,0.1016]
[1769483957800,0.01129,88674.0,88666.0,0.1016]
[1769483958911,0.01129,88672.0,88666.0,0.1016]
[1769483960703,0.01129,88670.0,88666.0,0.1016]
[1769483960908,0.01129,88671.0,88661.0,0.1016]
[1769483963309,0.01129,88674.0,88661.0,0.1016]
[1769483964708,0.01129,88672.0,88661.0,0.1016]
[1769483967112,0.05973521,88683.0,88661.0,0.1016]
[1769483967510,0.01129,88671.0,88661.0,0.1016]
[1769483967805,0.01129,88670.0,88661.0,0.1016]
[1769483968008,0.011289,88682.0,88661.0,0.1016]
[1769483968199,0.06009918,88682.0,88661.0,0.1016]
[1769483968798,0.011291,88666.0,88652.0,0.00012862]
[1769483969002,0.011291,88666.0,88653.0,0.4012]
[1769483969498,0.04881018,88669.0,88653.0,0.4012]
[1769483969705,0.1016,88677.0,88653.0,0.4012]
[1769483969706,0.04878894,88662.0,88653.0,0.4012]
[1769483970306,0.011291,88661.0,88653.0,0.4012]
[1769483970516,0.011292,88659.0,88653.0,0.4012]
[1769483971101,0.04878894,88662.0,88653.0,0.4012]
[1769483971410,0.011292,88660.0,88653.0,0.4012]
[1769483971802,0.011292,88658.0,88652.0,0.08495184]
[1769483973032,0.00012862,88657.0,88652.0,0.08495184]
[1769483975606,0.00012862,88657.0,88637.0,0.18051523]
[1769483975607,0.011292,88653.0,88642.0,0.40288]
[1769483975807,0.011293,88652.0,88642.0,0.40288]
[1769483976015,0.011293,88650.0,88642.0,0.40288]
[1769483978210,0.04852276,88653.0,88642.0,0.40288]
[1769483978607,0.011293,88652.0,88642.0,0.40288]
[1769483981613,0.011293,88650.0,88642.0,0.40288]
[1769483982113,0.011293,88652.0,88642.0,0.40288]
[1769483983017,0.011293,88650.0,88642.0,0.40288]
[1769483983609,0.011293,88648.0,88640.0,0.1016]
[1769483984310,0.011293,88646.0,88640.0,0.1016]
[1769483985422,0.011293,88649.0,88640.0,0.1016]
[1769483986824,0.011293,88647.0,88640.0,0.1016]
[1769483987824,0.011293,88650.0,88640.0,0.1016]
[1769483990625,0.011293,88648.0,88640.0,0.1016]
[1769483990820,0.011293,88651.0,88640.0,0.1016]
[1769483996027,0.011293,88652.0,88640.0,0.1016]
[1769484001132,0.10164,88655.0,88640.0,0.1016]
[1769484001325,0.011293,88652.0,88640.0,0.1016]
[1769484004531,0.16271203,88660.0,88640.0,0.1016]
[1769484004532,0.04850872,88669.0,88644.0,0.011293]
[1769484004727,0.20642578,88668.0,88649.0,0.16271203]
[1769484004928,0.10478578,88667.0,88650.0,0.41196]
[1769484005234,0.10478578,88666.0,88650.0,0.41196]
[1769484005531,0.011291,88667.0,88650.0,0.41196]
[1769484005732,0.10164,88670.0,88650.0,0.41196]
[1769484006232,0.011291,88664.0,88650.0,0.41196]
[1769484007528,0.011292,88660.0,88650.0,0.41196]
[1769484008932,0.04849896,88666.0,88650.0,0.41196]
[1769484008933,0.011291,88664.0,88650.0,0.41196]
[1769484010935,0.10164,88670.0,88650.0,0.41196]
[1769484010936,0.011291,88667.0,88650.0,0.41196]
[1769484011234,0.0485487,88676.0,88657.0,0.16271203]
[1769484011429,0.10164,88669.0,88660.0,0.16271203]
[1769484011633,0.01129,88668.0,88660.0,0.16271203]
[1769484013638,0.01129,88668.0,88658.0,0.16271203]
[1769484014633,0.01129,88672.0,88658.0,0.16271203]
[1769484014834,0.112929,88681.0,88662.0,0.16271203]
[1769484015131,0.10164,88681.0,88670.0,0.16271203]
[1769484016027,0.112929,88681.0,88670.0,0.16271203]
[1769484017526,0.10164,88681.0,88670.0,0.16271203]
[1769484017722,0.01129,88675.0,88667.0,0.41404]
[1769484021136,0.15023145,88681.0,88667.0,0.41404]
[1769484021137,0.011289,88680.0,88667.0,0.41404]
[1769484026238,0.06010188,88678.0,88667.0,0.41404]
[1769484026439,0.01129,88676.0,88667.0,0.41404]
[1769484032842,0.01129,88672.0,88667.0,0.41404]
[1769484033035,0.04889707,88677.0,88663.0,0.10164]
[1769484034140,0.01129,88674.0,88663.0,0.10164]
[1769484034446,0.011289,88677.0,88663.0,0.10164]
[1769484034635,0.01129,88675.0,88663.0,0.10164]
[1769484036749,0.01129,88673.0,88663.0,0.10164]
[1769484039651,0.15057148,88681.0,88663.0,0.10164]
[1769484039652,0.04863654,88679.0,88663.0,0.10164]
[1769484039950,0.16271203,88680.0,88650.0,0.16271203]
[1769484039951,0.011291,88668.0,88657.0,0.32892]
[1769484040153,0.011291,88666.0,88653.0,0.1016]
[1769484040450,0.011291,88666.0,88653.0,0.5222]
[1769484044455,0.04864688,88666.0,88653.0,0.1016]
[1769484044856,0.011291,88663.0,88653.0,0.1016]
[1769484045054,0.04864688,88658.0,88648.0,0.42228]
[1769484045252,0.011292,88655.0,88642.0,0.524]
[1769484045948,0.011292,88658.0,88642.0,0.524]
[1769484046148,0.011291,88661.0,88642.0,0.524]
[1769484046355,0.011291,88661.0,88643.0,0.011294]
[1769484046554,0.011291,88661.0,88642.0,0.524]
[1769484046755,0.011291,88664.0,88643.0,0.011294]
[1769484046952,0.011291,88664.0,88642.0,0.524]
[1769484046953,0.1016,88669.0,88650.0,0.011293]
[1769484047158,0.011291,88668.0,88647.0,0.011293]
[1769484048161,0.011291,88666.0,88647.0,0.011293]
[1769484048453,0.011291,88666.0,88644.0,0.011294]
[1769484048654,0.011291,88664.0,88644.0,0.011294]
[1769484049260,0.011291,88662.0,88642.0,0.524]
[1769484049662,0.011291,88664.0,88642.0,0.535294]
[1769484049959,0.011291,88662.0,88642.0,0.535294]
[1769484050461,0.011292,88660.0,88642.0,0.524]
[1769484051262,0.011291,88663.0,88642.0,0.524]
[1769484051452,0.011291,88661.0,88642.0,0.524]
[1769484053065,0.04888533,88668.0,88642.0,0.524]
[1769484053259,0.04888533,88665.0,88642.0,0.524]
[1769484054566,0.011292,88659.0,88642.0,0.524]
[1769484056569,0.0601721,88659.0,88642.0,0.524]
[1769484057570,0.011292,88657.0,88642.0,0.524]
[1769484057769,0.011292,88655.0,88642.0,0.524]
[1769484058570,0.0488711,88658.0,88642.0,0.524]
[1769484058770,0.011293,88652.0,88642.0,0.524]
[1769484058955,0.011292,88655.0,88642.0,0.524]
[1769484059356,0.011292,88655.0,88642.0,0.1016]
[1769484059670,0.1618031,88658.0,88642.0,0.1016]
[1769484059874,0.112932,88658.0,88642.0,0.1016]
[1769484060068,0.10164,88658.0,88642.0,0.1016]
[1769484060270,0.112932,88659.0,88642.0,0.1016]
[1769484061969,0.04876921,88658.0,88633.0,0.00789778]
[1769484062269,0.011293,88649.0,88633.0,0.00789778]
[1769484062470,0.011293,88650.0,88633.0,0.00789778]
[1769484062657,0.04876921,88658.0,88633.0,0.00789778]
[1769484062862,0.011293,88651.0,88633.0,0.00789778]
[1769484063774,0.011293,88648.0,88633.0,0.00789778]
[1769484064570,0.011293,88651.0,88633.0,0.00789778]
[1769484065872,0.011292,88655.0,88633.0,0.00789778]
[1769484066068,0.06021131,88665.0,88633.0,0.00789778]
[1769484066269,0.10164,88664.0,88633.0,0.00789778]
[1769484066669,0.10164,88664.0,88644.0,0.011294]
[1769484068480,0.01129,88670.0,88644.0,0.436854]
[1769484069376,0.01129,88670.0,88644.0,0.57229074]
[1769484069769,0.01129,88670.0,88647.0,0.011293]
[1769484069964,0.10164,88674.0,88650.0,0.011293]
[1769484070269,0.011289,88678.0,88647.0,0.13543674]
[1769484070465,0.011289,88678.0,88656.0,0.011292]
[1769484070670,0.011289,88678.0,88657.0,0.10164]
[1769484070872,0.01129,88675.0,88657.0,0.52768]
[1769484071772,0.04884698,88678.0,88657.0,0.52768]
[1769484071980,0.01129,88672.0,88657.0,0.52768]
[1769484072181,0.01129,88676.0,88657.0,0.52768]
[1769484072479,0.10164,88680.0,88657.0,0.52768]
[1769484072480,0.112929,88680.0,88657.0,0.52768]
[1769484072782,0.112929,88680.0,88658.0,0.011292]
[1769484075281,0.10164,88680.0,88658.0,0.011292]
[1769484075668,0.10164,88680.0,88663.0,0.011291]
[1769484075871,0.10164,88685.0,88665.0,0.011291]
[1769484077286,0.10164,88685.0,88667.0,0.011291]
[1769484078989,0.011288,88688.0,88667.0,0.011291]
[1769484079183,0.04901083,88693.0,88668.0,0.10164]
[1769484079389,0.15065083,88693.0,88668.0,0.10164]
[1769484080389,0.10164,88693.0,88677.0,0.011289]
[1769484080685,0.10164,88698.0,88677.0,0.011289]
[1769484081184,0.15068091,88698.0,88677.0,0.011289]
[1769484081574,0.04904091,88697.0,88677.0,0.011289]
[1769484081787,0.011287,88693.0,88671.0,0.01129]
[1769484081990,0.06032917,88693.0,88671.0,0.01129]
[1769484083491,0.04904217,88686.0,88662.0,0.13543674]
[1769484083690,0.10164,88698.0,88663.0,0.539291]
[1769484083691,0.04904217,88684.0,88663.0,0.539291]
[1769484083986,0.04904217,88684.0,88664.0,0.1016]
[1769484084580,0.04907435,88682.0,88664.0,0.1016]
[1769484085087,0.04907435,88682.0,88665.0,0.011291]
[1769484085980,0.04907435,88682.0,88667.0,0.011291]
[1769484086182,0.04907435,88682.0,88669.0,0.01129]
[1769484087688,0.04907435,88682.0,88666.0,0.011291]
[1769484090289,0.04907435,88682.0,88668.0,0.01129]
[1769484091992,0.04907435,88682.0,88667.0,0.011291]
[1769484095191,0.04907435,88682.0,88669.0,0.01129]
[1769484101200,0.04907435,88682.0,88669.0,0.14672674]
[1769484104204,0.04907435,88682.0,88670.0,0.13543674]
[1769484105296,0.04907435,88682.0,88669.0,0.01129]
[1769484105297,0.04907435,88682.0,88671.0,0.13543674]
[1769484107295,0.04907435,88682.0,88672.0,0.13543674]
[1769484107598,0.04907435,88682.0,88668.0,0.16922123]
[1769484107599,0.03235257,88677.0,88664.0,0.27082123]
[1769484107803,0.03235257,88677.0,88664.0,0.1016]
[1769484108704,0.02156743,88675.0,88664.0,0.1016]
[1769484110102,0.02156743,88675.0,88664.0,0.06561855]
[1769484116222,0.02156743,88675.0,88664.0,0.06685425]
[1769484117435,0.00959658,88680.0,88665.0,0.0125267]
[1769484117629,0.00959658,88680.0,88670.0,0.16258431]
[1769484120130,0.00959658,88684.0,88670.0,0.16414262]
[1769484120331,0.11404433,88683.0,88670.0,0.16414262]
[1769484120633,0.00959658,88683.0,88670.0,0.16414262]
[1769484120935,0.10445397,88682.0,88670.0,0.16414262]
[1769484121120,0.00959658,88683.0,88670.0,0.16414262]
[1769484122032,0.1016,88682.0,88670.0,0.16414262]
[1769484122227,0.20606826,88682.0,88670.0,0.16414262]
[1769484122534,0.1016,88682.0,88670.0,0.16414262]
[1769484122735,0.1016,88682.0,88671.0,0.00155653]
[1769484123035,0.1016,88683.0,88675.0,0.00155653]
[1769484124434,0.1016,88683.0,88670.0,0.16258431]
[1769484124636,0.1016,88683.0,88671.0,0.00146784]
[1769484124835,0.00959658,88687.0,88671.0,0.00146784]
[1769484125035,0.00959658,88680.0,88660.0,0.011291]
[1769484125240,0.00959658,88675.0,88656.0,0.1016]
[1769484125427,0.00959658,88669.0,88656.0,0.1016]
[1769484126334,0.00959658,88669.0,88650.0,0.16258431]
[1769484126538,0.00959658,88669.0,88649.0,0.01276634]
[1769484126837,0.00959658,88669.0,88651.0,0.00147334]
[1769484127639,0.00959658,88669.0,88653.0,0.00147334]
[1769484127841,0.00959658,88669.0,88659.0,0.16258431]
[1769484128341,0.00959658,88669.0,88656.0,0.00147334]
[1769484128741,0.00959658,88669.0,88652.0,0.011293]
[1769484128742,0.00959658,88667.0,88652.0,0.00159892]
[1769484129041,0.00959658,88667.0,88648.0,0.00159892]
[1769484129835,0.00959658,88667.0,88650.0,0.16258431]
[1769484130634,0.00959658,88667.0,88648.0,0.00159892]
[1769484130829,0.00959658,88667.0,88646.0,0.1016]
[1769484131036,0.00959658,88667.0,88647.0,0.011293]
[1769484131242,0.00959658,88667.0,88647.0,0.01296454]
[1769484131445,0.00959658,88667.0,88650.0,0.16258431]
[1769484131743,0.00959658,88667.0,88651.0,0.00167154]
[1769484136446,0.00959658,88667.0,88652.0,0.011293]
[1769484137345,0.1016,88670.0,88657.0,0.16258431]
[1769484137543,0.1016,88670.0,88660.0,0.16258431]
[1769484138150,0.11119658,88670.0,88660.0,0.16258431]
[1769484138550,0.11119658,88670.0,88661.0,0.011291]
[1769484138742,0.11119658,88670.0,88660.0,0.16258431]
[1769484138942,0.16258431,88680.0,88661.0,0.00928628]
[1769484138943,0.1016,88673.0,88661.0,0.00928628]
[1769484139546,0.01129,88672.0,88660.0,0.16258431]
[1769484139751,0.1016,88673.0,88656.0,0.00928628]
[1769484140552,0.11289,88673.0,88656.0,0.00928628]
[1769484140942,0.00987958,88672.0,88656.0,0.00928628]
[1769484141142,0.00987958,88672.0,88660.0,0.16258431]
[1769484144553,0.10164,88674.0,88661.0,0.0092256]
[1769484145052,0.33528,88679.0,88668.0,0.0092256]
[1769484145053,0.10164,88679.0,88668.0,0.0092256]
[1769484145253,0.011288,88686.0,88669.0,0.17180991]
[1769484145441,0.011289,88684.0,88670.0,0.0092256]
[1769484147056,0.00965089,88683.0,88670.0,0.0092256]
[1769484147754,0.011289,88684.0,88670.0,0.0092256]
[1769484147755,0.11482606,88682.0,88670.0,0.0092256]
[1769484147945,0.10517517,88681.0,88670.0,0.0092256]
[1769484148146,0.00965089,88682.0,88670.0,0.0092256]
[1769484148347,0.10517369,88681.0,88670.0,0.0092256]
[1769484148550,0.00965089,88682.0,88670.0,0.0092256]
[1769484148756,0.10517031,88681.0,88670.0,0.0092256]
[1769484149057,0.00965089,88678.0,88661.0,0.0092256]
[1769484150456,0.00965089,88678.0,88662.0,0.011291]
[1769484151660,0.00965089,88678.0,88664.0,0.011291]
[1769484152045,0.00965089,88678.0,88667.0,0.011291]
[1769484152252,0.399,88682.0,88669.0,0.0092256]
[1769484152451,0.10517808,88681.0,88669.0,0.0092256]
[1769484152656,0.11482897,88680.0,88668.0,0.16258431]
[1769484152856,0.11482897,88679.0,88668.0,0.16258431]
[1769484153157,0.00965089,88679.0,88668.0,0.16258431]
[1769484153654,0.00965089,88679.0,88661.0,0.0092256]
[1769484153858,0.00965089,88679.0,88665.0,0.011291]
[1769484154362,0.00965089,88679.0,88662.0,0.0205166]
[1769484154658,0.00965089,88679.0,88664.0,0.011291]
[1769484155050,0.00965089,88679.0,88666.0,0.011291]
[1769484157754,0.00965089,88677.0,88663.0,0.0092256]
[1769484157956,0.10521461,88676.0,88663.0,0.0092256]
[1769484158150,0.10521461,88675.0,88664.0,0.011291]
[1769484158351,0.00965089,88677.0,88666.0,0.0205166]
[1769484158552,0.10518372,88676.0,88666.0,0.0205166]
[1769484158851,0.10518372,88675.0,88666.0,0.0092256]
[1769484159053,0.16258431,88700.0,88670.0,0.0092256]
[1769484159249,0.1016,88709.0,88691.0,0.0092256]
[1769484159454,0.1016,88709.0,88699.0,0.16258431]
[1769484159654,0.1016,88709.0,88699.0,0.18309591]
[1769484159853,0.011284,88723.0,88700.0,0.0092256]
[1769484160053,0.399,88722.0,88701.0,0.0205116]
[1769484160253,0.399,88722.0,88702.0,0.0092256]
[1769484160452,0.11273957,88722.0,88702.0,0.0092256]
[1769484160648,0.011284,88723.0,88702.0,0.0092256]
[1769484160649,0.399,88721.0,88710.0,0.16258431]
[1769484161062,0.00965089,88720.0,88710.0,0.16258431]
[1769484161263,0.00965089,88720.0,88703.0,0.0205116]
[1769484163562,0.00965089,88720.0,88704.0,0.0092256]
[1769484164069,0.00965089,88719.0,88704.0,0.0092256]
[1769484166558,0.1016,88718.0,88704.0,0.0092256]
[1769484166764,0.11125089,88718.0,88704.0,0.0092256]
[1769484167668,0.00965089,88717.0,88704.0,0.0092256]
[1769484173283,0.00965089,88717.0,88693.0,0.1016]
[1769484173284,0.1016,88718.0,88708.0,0.0097471]
[1769484173675,0.00979298,88728.0,88710.0,0.0097471]
[1769484173880,0.11139298,88727.0,88710.0,0.0097471]
[1769484174380,0.00979298,88726.0,88710.0,0.0097471]
[1769484176787,0.00979298,88724.0,88710.0,0.0097471]
[1769484179993,0.00979298,88721.0,88705.0,0.0097471]
[1769484181091,0.00979298,88721.0,88706.0,0.011286]
[1769484181880,0.00979298,88721.0,88708.0,0.011285]
[1769484182395,0.00979298,88721.0,88710.0,0.011285]
[1769484182693,0.00979298,88721.0,88708.0,0.0097471]
[1769484183785,0.00979298,88726.0,88708.0,0.0097471]
[1769484184386,0.00979298,88726.0,88711.0,0.011285]
[1769484184691,0.00979298,88726.0,88708.0,0.0210321]
[1769484184891,0.00979298,88726.0,88709.0,0.0097471]
[1769484186889,0.00979298,88726.0,88710.0,0.011285]
[1769484187086,0.00979298,88726.0,88710.0,0.0210321]
[1769484187291,0.00979298,88726.0,88714.0,0.011285]
[1769484187591,0.00979298,88726.0,88713.0,0.0097471]
[1769484188391,0.00979298,88726.0,88715.0,0.011284]
[1769484189097,0.00979298,88726.0,88713.0,0.0097471]
[1769484190694,0.00979298,88725.0,88708.0,0.0097471]
[1769484190897,0.00979298,88725.0,88708.0,0.0210321]
[1769484191496,0.00979298,88723.0,88704.0,0.0210331]
[1769484191697,0.00979298,88723.0,88705.0,0.0097471]
[1769484192193,0.00979298,88723.0,88704.0,0.011286]
[1769484192194,0.00979298,88723.0,88706.0,0.0210331]
[1769484192506,0.00979298,88723.0,88707.0,0.0097471]
[1769484194502,0.00979298,88723.0,88708.0,0.011285]
[1769484194700,0.00979298,88723.0,88709.0,0.0097471]
[1769484196401,0.00979298,88723.0,88710.0,0.011285]
[1769484196608,0.33728,88729.0,88718.0,0.0097471]
[1769484196803,0.10156,88731.0,88719.0,0.0097471]
[1769484200909,0.10156,88731.0,88720.0,0.011284]
[1769484201711,0.10156,88731.0,88719.0,0.0097471]
[1769484204111,0.00989704,88730.0,88714.0,0.0207176]
[1769484204413,0.00989704,88730.0,88712.0,0.10156]
[1769484204608,0.011283,88729.0,88712.0,0.10156]
[1769484204912,0.00989704,88728.0,88712.0,0.10156]
[1769484205708,0.011283,88727.0,88712.0,0.10156]
[1769484205914,0.00989704,88726.0,88712.0,0.10156]
[1769484206703,0.011283,88725.0,88712.0,0.10156]
[1769484206908,0.00989704,88724.0,88712.0,0.10156]
[1769484207211,0.00989704,88724.0,88713.0,0.011285]
[1769484207414,0.28778859,88755.0,88713.0,0.0094326]
[1769484207611,0.4408,88747.0,88719.0,0.011284]
[1769484207809,0.11271542,88741.0,88719.0,0.011284]
[1769484208008,0.4408,88747.0,88719.0,0.011284]
[1769484208317,0.011282,88736.0,88719.0,0.011284]
[1769484208613,0.011282,88734.0,88719.0,0.011284]
[1769484208806,0.112842,88734.0,88716.0,0.0207166]
[1769484209406,0.112842,88734.0,88719.0,0.001]
[1769484209609,0.00989704,88733.0,88719.0,0.001]
[1769484210519,0.00989704,88751.0,88723.0,0.0094326]
[1769484210717,0.1094471,88753.0,88725.0,0.0094326]
[1769484210718,0.00989704,88745.0,88725.0,0.0094326]
[1769484210918,0.00989704,88743.0,88719.0,0.0104326]
[1769484211118,0.00989704,88743.0,88719.0,0.0094326]
[1769484211819,0.00989704,88741.0,88719.0,0.0094326]
[1769484212410,0.00989704,88741.0,88724.0,0.011283]
[1769484214714,0.00989704,88741.0,88724.0,0.0207156]
[1769484214913,0.00989704,88741.0,88725.0,0.0094326]
[1769484215113,0.00989704,88741.0,88727.0,0.0094326]
[1769484215912,0.00989704,88741.0,88723.0,0.00969841]
[1769484216108,0.00989704,88741.0,88724.0,0.02098141]
[1769484217127,0.00989704,88741.0,88724.0,0.00969841]
[1769484217717,0.00911408,88740.0,88724.0,0.00969841]
[1769484217916,0.00911408,88740.0,88720.0,0.011284]
[1769484219123,0.00911408,88740.0,88722.0,0.011284]
[1769484219324,0.00911408,88740.0,88722.0,0.00969841]
[1769484220128,0.00911408,88740.0,88724.0,0.011283]
[1769484220318,0.00911408,88740.0,88723.0,0.00969841]
[1769484220920,0.00911408,88740.0,88726.0,0.011283]
[1769484221120,0.00911408,88740.0,88726.0,0.02098141]
[1769484221322,0.00911408,88740.0,88728.0,0.011283]
[1769484221520,0.10156,88742.0,88729.0,0.00969841]
[1769484221716,0.00911408,88752.0,88734.0,0.00969841]
[1769484221921,0.00911408,88752.0,88719.0,0.10156]
[1769484221922,0.10156,88748.0,88736.0,0.00969841]
[1769484222934,0.11067408,88748.0,88736.0,0.00969841]
[1769484224233,0.00911408,88747.0,88731.0,0.00969841]
[1769484224618,0.10156,88748.0,88731.0,0.00969841]
[1769484224828,0.10156,88748.0,88738.0,0.00969841]
[1769484227227,0.10156,88748.0,88732.0,0.011282]
[1769484227433,0.10156,88748.0,88733.0,0.00969841]
[1769484227632,0.11067408,88748.0,88738.0,0.16235556]
[1769484230334,0.0078871,88753.0,88739.0,0.00969841]
[1769484230538,0.0078871,88753.0,88745.0,0.00969841]
[1769484230840,0.0078871,88753.0,88746.0,0.02097941]
[1769484231922,0.0078871,88753.0,88748.0,0.01128]
[1769484232724,1e-07,88753.0,88751.0,0.01128]
[1769484232932,0.34747614,88763.0,88753.0,0.01128]
[1769484233128,0.10974046,88761.0,88753.0,0.01128]
[1769484233737,0.10974046,88761.0,88750.0,0.02081668]
[1769484234928,0.10152,88761.0,88750.0,0.02081668]
[1769484236133,0.10152,88761.0,88750.0,0.00953668]
[1769484236731,0.11033002,88761.0,88750.0,0.00953668]
[1769484236931,0.00881002,88760.0,88749.0,0.16235556]
[1769484238941,0.10974046,88761.0,88750.0,0.00953668]
[1769484240431,0.11847945,88761.0,88749.0,0.16235556]
[1769484240839,0.00873899,88760.0,88749.0,0.16235556]
[1769484241340,0.10974046,88761.0,88751.0,0.01128]
[1769484241545,0.10974046,88761.0,88752.0,0.00953668]
[1769484242042,0.00822046,88761.0,88753.0,0.01128]
[1769484242342,0.10152,88772.0,88758.0,0.00953668]
[1769484242639,0.00847154,88774.0,88760.0,0.16235556]
[1769484243234,0.12112601,88773.0,88760.0,0.16235556]
[1769484243541,0.00847154,88773.0,88760.0,0.16235556]
[1769484243743,0.44184,88776.0,88748.0,0.09012009]
[1769484243744,0.10152,88776.0,88764.0,0.00953668]
[1769484243941,0.10152,88776.0,88766.0,0.16235556]
[1769484244744,0.00847154,88778.0,88769.0,0.011278]
[1769484244946,0.34048,88783.0,88769.0,0.011278]
[1769484245132,0.10152,88787.0,88770.0,0.16235556]
[1769484245331,0.10152,88787.0,88771.0,0.00995298]
[1769484245740,0.10152,88787.0,88770.0,0.16235556]
[1769484246141,0.011276,88786.0,88770.0,0.16235556]
[1769484246946,0.00035679,88785.0,88770.0,0.16235556]
[1769484247142,0.00035679,88783.0,88770.0,0.16235556]
[1769484247338,0.10152,88787.0,88770.0,0.16235556]
[1769484247339,0.00035679,88781.0,88770.0,0.16235556]
[1769484247844,0.01163279,88781.0,88770.0,0.16235556]
[1769484248147,0.00029805,88780.0,88770.0,0.16235556]
[1769484248540,0.00029805,88780.0,88765.0,0.00995298]
[1769484248751,0.11264369,88779.0,88754.0,0.10152]
[1769484248948,0.11264369,88779.0,88754.0,0.112799]
[1769484249150,0.11264369,88779.0,88754.0,0.10152]
[1769484249151,0.011278,88769.0,88754.0,0.10152]
[1769484249448,0.011278,88767.0,88750.0,0.17235555]
[1769484249647,0.011278,88769.0,88749.0,0.01128]
[1769484249850,0.00051897,88766.0,88749.0,0.01128]
[1769484250152,0.00051897,88766.0,88754.0,0.001]
[1769484250662,0.00051897,88764.0,88754.0,0.001]
[1769484250846,0.00051897,88764.0,88750.0,0.16235556]
[1769484252649,0.00051897,88764.0,88750.0,0.17363556]
[1769484253149,0.00051897,88764.0,88750.0,0.18371951]
[1769484253452,0.34044,88772.0,88755.0,0.01008395]
[1769484253640,0.011277,88778.0,88761.0,0.01008395]
[1769484253840,0.10152,88778.0,88768.0,0.17256288]
[1769484254953,0.10152,88778.0,88768.0,0.01020732]
[1769484255656,0.10152,88778.0,88764.0,0.01020732]
[1769484255855,0.011277,88777.0,88764.0,0.01020732]
[1769484256054,0.011277,88777.0,88760.0,0.16235556]
[1769484256453,0.10152,88778.0,88760.0,0.16235556]
[1769484256454,0.011277,88775.0,88760.0,0.16235556]
[1769484256950,0.011277,88775.0,88760.0,0.01026337]
[1769484257254,0.011277,88775.0,88761.0,0.01026337]
[1769484259854,0.10152,88778.0,88761.0,0.01026337]
[1769484260052,0.011277,88777.0,88761.0,0.01026337]
[1769484261058,0.011277,88775.0,88761.0,0.01026337]
[1769484261758,0.011277,88773.0,88761.0,0.01026337]
[1769484261944,0.011277,88776.0,88761.0,0.01026337]
[1769484262355,0.011277,88776.0,88760.0,0.17363456]
[1769484262356,0.10152,88778.0,88763.0,0.01023934]
[1769484262856,0.10152,88778.0,88764.0,0.011278]
[1769484263049,0.10152,88778.0,88768.0,0.16235556]
[1769484263249,0.10152,88778.0,88769.0,0.01023934]
[1769484263753,0.10152,88782.0,88771.0,0.01023934]
[1769484263953,0.10152,88782.0,88772.0,0.011277]
[1769484264157,0.10152,88782.0,88774.0,0.011277]
[1769484264362,0.10152,88782.0,88775.0,0.01029793]
[1769484268457,0.10152,88782.0,88772.0,0.16235556]
[1769484268765,0.10152,88782.0,88773.0,0.011277]
[1769484269969,0.10152,88782.0,88772.0,0.01027818]
[1769484270467,0.10152,88782.0,88764.0,0.01029702]
[1769484270667,0.10152,88782.0,88755.0,0.13525037]
[1769484270668,0.17363156,88780.0,88757.0,0.09012009]
[1769484270859,0.17363156,88780.0,88757.0,0.01029702]
[1769484270860,0.011277,88778.0,88757.0,0.01029702]
[1769484271060,0.011277,88778.0,88761.0,0.011279]
[1769484271956,0.16235556,88780.0,88757.0,0.01029702]
[1769484271957,0.011277,88774.0,88758.0,0.011279]
[1769484272161,0.011277,88774.0,88760.0,0.16235556]
[1769484272362,0.011277,88777.0,88760.0,0.17363456]
[1769484273865,0.011276,88779.0,88763.0,0.011278]
[1769484275173,0.16235556,88780.0,88763.0,0.011278]
[1769484275375,0.10152,88779.0,88763.0,0.011278]
[1769484277576,0.10152,88779.0,88765.0,0.011278]
[1769484283682,0.10152,88779.0,88762.0,0.011278]
[1769484285486,0.011277,88778.0,88762.0,0.011278]
[1769484285681,0.10152,88779.0,88760.0,0.16235556]
[1769484285888,0.10152,88779.0,88760.0,0.17244332]
[1769484287283,0.10152,88779.0,88769.0,0.011278]
[1769484287488,0.10152,88779.0,88772.0,0.011277]
[1769484288788,0.10152,88779.0,88769.0,0.01011271]
[1769484288789,0.10152,88779.0,88769.0,0.02139071]
[1769484290698,0.10152,88779.0,88769.0,0.011278]
[1769484291990,0.10152,88779.0,88767.0,0.09015093]
[1769484292191,0.10152,88779.0,88772.0,0.011277]
[1769484294302,0.10152,88779.0,88772.0,0.02138139]
[1769484294499,0.00788355,88793.0,88775.0,0.011277]
[1769484294700,0.10148,88792.0,88775.0,0.011277]
[1769484294901,0.21412369,88792.0,88775.0,0.011277]
[1769484295501,0.011275,88791.0,88775.0,0.011277]
[1769484297104,0.011275,88789.0,88774.0,0.09015093]
[1769484297803,0.011275,88789.0,88773.0,0.09015093]
[1769484299108,0.10148,88792.0,88773.0,0.09015093]
[1769484299410,0.011275,88787.0,88773.0,0.09015093]
[1769484300314,0.10148,88792.0,88773.0,0.10021253]
[1769484300507,0.10148,88792.0,88773.0,0.09015093]
[1769484300712,0.11263798,88791.0,88772.0,0.09015093]
[1769484302014,0.00028148,88790.0,88772.0,0.09015093]
[1769484302507,0.011276,88785.0,88772.0,0.09015093]
[1769484302710,0.00028148,88784.0,88772.0,0.09015093]
[1769484304114,0.00028436,88780.0,88772.0,0.09015093]
[1769484304310,0.00028436,88780.0,88771.0,0.09015093]
[1769484304511,0.00028436,88778.0,88772.0,0.09015093]
[1769484304708,0.00028436,88778.0,88764.0,0.13525037]
[1769484305111,0.00028436,88778.0,88765.0,0.011278]
[1769484305511,0.00028436,88778.0,88764.0,0.13525037]
[1769484305908,0.00028436,88778.0,88764.0,0.14652837]
[1769484307921,0.00028436,88778.0,88765.0,0.13525037]
[1769484311217,0.00022334,88777.0,88765.0,0.13525037]
[1769484311519,0.00022334,88775.0,88762.0,0.13525037]
[1769484312322,0.00022334,88775.0,88762.0,0.14517246]
[1769484313319,0.00022334,88775.0,88763.0,0.02120009]
[1769484313524,0.00023372,88780.0,88766.0,0.00992209]
[1769484314316,0.112756,88781.0,88766.0,0.00992209]
[1769484314317,0.0114855,88779.0,88766.0,0.00992209]
[1769484316922,0.00020888,88778.0,88762.0,0.14652937]
[1769484317127,0.00020888,88776.0,88762.0,0.14652937]
[1769484317329,0.00020888,88776.0,88762.0,0.15645974]
[1769484317520,0.00020888,88776.0,88763.0,0.00993037]
[1769484318731,0.011277,88777.0,88763.0,0.00993037]
[1769484319136,0.00021766,88765.0,88755.0,0.13525037]
[1769484319426,0.00021766,88765.0,88751.0,0.00992744]